[Event "CZE-ch U12 Open 2023"]
[Site "Teplice"]
[Date "2023.03.11"]
[Round "1.1"]
[White "Sochor, Vaclav"]
[Black "Mik, Tomas"]
[Result "0-1"]
[Annotator "TA"]
[ECO "B00"]
[WhiteElo "1503"]
[BlackElo "1911"]
[PlyCount "78"]
[EventDate "2023.03.09"]
[EventType "swiss"]
[EventCountry "CZE"]
[SourceTitle "playchess.com"]
[Source "ChessBase"]
[SourceQuality "1"]
[TimeControl "40/5400+30:1800+30"]

{[%evp 13,78,32,64,28,49,4,58,-26,0,-6,-1,0,6,0,0,0,0,-28,22,18,22,-15,0,-20,12,0,14,-24,0,0,0,0,0,0,0,0,0,-25,0,0,0,-62,-65,-64,-63,-133,-38,-41,0,-117,-112,-125,-125,-176,-177,-166,-179,-483,-482,-826,-819,-819,-733,-2305,-1979,-6436,-5647]} 1. e4 {[%emt 0:00:09]} d6 {[%emt 0:00:08]} 2. d4 {[%emt 0:00:46]} e5 {[%emt 0:00:31]} 3. dxe5 {[%emt 0:02:05]} dxe5 {[%emt 0:00:07]} 4. Qxd8+ {[%emt 0:03:11]} Kxd8 {[%emt 0:00:06]} 5. Nf3 {[%emt 0:02:51]} Bd6 {[%emt 0:00:58]} 6. Nc3 {[%emt 0:02:29]} Nf6 {[%emt 0:01:26]} 7. Bg5 {[%emt 0:03:15]} c6 {[%emt 0:03:57]} 8. O-O-O {[%emt 0:06:01] B07: Pirc Defence: Miscellaneous Systems.} Ke7 {[%emt 0:00:51]} 9. Be2 {[%emt 0:08:02][%cal Od1d6]} (9. Bc4 {is interesting.} Bc7 10. Nh4 h6 11. Nf5+) 9... Be6 {[%emt 0:09:15] [#]} (9... Nbd7 $11) 10. Nd2 $146 {[%emt 0:09:53]} (10. Rxd6 $14 Kxd6 11. Rd1+ Kc7 12. Nxe5) ({Predecessor:} 10. Nh4 Nbd7 11. Nf5+ Bxf5 12. exf5 h6 13. Bh4 Rhd8 14. Ne4 Bc7 15. Rhe1 Kf8 16. Bd3 {½-½ Fedoseev,V (2674)-Grandelius,N (2663) Titled Tuesday intern op 29th Dec blitz 2020 (8)}) 10... Nbd7 {[%emt 0:01:28]} 11. Bc4 {[%emt 0:05:11]} h6 {[%emt 0:02:17]} 12. Bh4 {[%emt 0:05:37][%cal Bg5h4,Bh4f2,Bf2e3][%mdl 32]} b5 {[%emt 0:02:14]} 13. Bxe6 {[%emt 0:02:11]} Kxe6 {[%emt 0:00:22]} 14. f3 {[%emt 0:02:04]} a5 {[%emt 0:02:41]} 15. Rhf1 {[%emt 0:04:07]} g5 {[%emt 0:01:46]} (15... a4 $142) 16. Bf2 $11 {[%emt 0:02:42]} a4 {[%emt 0:05:11]} 17. Ncb1 {[%emt 0:06:59]} (17. Rg1 {looks sharper.} Bc5 18. Bxc5 Nxc5 19. Nf1) 17... Ne8 {[%emt 0:08:37][%cal Bf6e8,Be8c7,Bc7a6][%mdl 32]} 18. a3 {[%emt 0:09:32]} Nc7 {[%emt 0:01:21]} 19. Be3 {[%emt 0:02:46]} Nf8 {[%emt 0:04:10]} 20. c4 {[%emt 0:01:28]} Na6 {[%emt 0:03:16]} (20... Nd7 {keeps more tension.} 21. cxb5 Nxb5 22. Nc4 Bc5) 21. Nc3 {[%emt 0:08:25]} Rb8 {[%emt 0:01:47]} 22. cxb5 {[%emt 0:04:37]} cxb5 {[%emt 0:00:12]} 23. Nd5 {[%emt 0:00:35]} Nd7 {[%emt 0:01:37]} 24. Kb1 {[%emt 0:00:59]} Rhc8 {[%emt 0:02:44]} 25. h4 {[%emt 0:01:31]} f6 {[%emt 0:03:47]} (25... b4 {seems wilder.} 26. axb4 Nxb4 27. Rc1 gxh4 28. Rxc8 Rxc8 29. Rh1 Nxd5 30. exd5+ Kxd5 31. Rxh4 a3) 26. hxg5 {[%emt 0:00:28]} hxg5 {[%emt 0:00:12]} 27. g3 {[%emt 0:00:30]} (27. Rc1 $11) 27... b4 $1 $15 {[%emt 0:00:59]} 28. axb4 {[%emt 0:00:23]} Nxb4 {[%emt 0:00:26]} 29. Nxb4 {[%emt 0:01:03]} (29. Rc1 $15) 29... Rxb4 {[%emt 0:00:20]} (29... Bxb4 $17 30. Rc1 Bc3) 30. Rc1 {[%emt 0:00:59]} Rcb8 {[%emt 0:01:18]} 31. Nc4 {[%emt 0:00:42]} (31. Rc6 $11 Rd8 32. Rc3) 31... Bc5 $17 {[%emt 0:03:00]} 32. Bd2 {[%emt 0:01:56]} Rb3 {[%emt 0:02:21] [#] ...Bd4 is the strong threat.} 33. Rc3 {[%emt 0:01:03]} (33. Bc3 $17) 33... Bd4 $19 {[%emt 0:00:22]} 34. Rxb3 {[%emt 0:00:34]} Rxb3 {[%emt 0:00:10]} ({Inferior is} 34... axb3 35. g4 $15) 35. Kc2 $2 {[%emt 0:00:36]} (35. Ba5) 35... Nb6 {[%emt 0:00:57][%mdl 64] [#] Deflection. Black is clearly winning.} 36. Nxb6 {[%emt 0:00:56]} (36. Na3 $142 Rxb2+ 37. Kd1) 36... Rxb2+ {[%emt 0:00:07]} ({And not} 36... Rxb6 37. Bc3 $17) 37. Kd3 {[%emt 0:00:18]} Rxb6 {[%emt 0:00:25]} 38. Rc1 {[%emt 0:01:36]} a3 {[%emt 0:00:13] Hoping for ...a2.} 39. Bc3 {[%emt 0:00:41]} Rb3 {[%emt 0:00:45] Weighted Error Value: White=0.60/Black=0.16 (very precise)} 0-1

[Event "CZE-ch U12 Open 2023"]
[Site "Teplice"]
[Date "2023.03.11"]
[Round "1.2"]
[White "Mikulka, Martin Michael"]
[Black "Rendl, Lubos"]
[Result "0-1"]
[Annotator "NA RC COMBH"]
[ECO "B33"]
[WhiteElo "1786"]
[BlackElo "1477"]
[PlyCount "92"]
[EventDate "2023.03.09"]
[EventType "swiss"]
[EventCountry "CZE"]
[SourceTitle "playchess.com"]
[Source "ChessBase"]
[SourceQuality "1"]
[TimeControl "40/5400+30:1800+30"]

1. e4 {[%emt 0:00:03]} c5 {[%emt 0:00:02]} 2. Nf3 {[%emt 0:00:09]} Nc6 {[%emt 0:00:10]} 3. d4 {[%emt 0:00:09]} cxd4 {[%emt 0:00:06]} 4. Nxd4 {[%emt 0:00:06]} Nf6 {[%emt 0:00:05]} 5. Nc3 {[%emt 0:00:10]} e5 {[%emt 0:00:14]} 6. Ndb5 {[%emt 0:00:27]} d6 {[%emt 0:00:12]} 7. Bg5 {[%emt 0:00:11]} a6 {[%emt 0:00:10]} 8. Na3 {[%emt 0:00:10]} b5 {[%emt 0:00:14]} 9. Nd5 {[%emt 0:00:35]} Be7 {[%emt 0:00:13]} 10. Bxf6 {[%emt 0:00:24]} Bxf6 {[%emt 0:00:08]} 11. c3 {[%emt 0:00:21]} O-O {[%emt 0:00:42]} 12. Nc2 {[%emt 0:01:33]} Bg5 {[%emt 0:00:45]} 13. h4 {[%emt 0:01:34]} Bh6 {[%emt 0:03:12]} 14. g4 {[%emt 0:00:55]} g6 {[%emt 0:01:23]} 15. g5 {[%emt 0:10:38]} Bg7 {[%emt 0:00:11]} 16. Nce3 {[%emt 0:03:24]} f5 {[%emt 0:05:46]} 17. f3 {[%emt 0:14:18]} Ra7 {[%emt 0:04:57]} 18. Qd2 {[%emt 0:02:19]} fxe4 {[%emt 0:00:44]} 19. fxe4 {[%emt 0:00:59]} Be6 {[%emt 0:02:13]} 20. Bh3 {[%emt 0:05:18]} Bxh3 {[%emt 0:04:26]} 21. Rxh3 {[%emt 0:00:06]} Raf7 {[%emt 0:03:03]} 22. Rh2 {[%emt 0:01:54]} b4 {[%emt 0:06:09]} 23. O-O-O {[%emt 0:05:23]} bxc3 {[%emt 0:01:51]} 24. bxc3 {[%emt 0:00:16]} Qa5 {[%emt 0:02:49]} 25. Qc2 {[%emt 0:09:22]} Rb8 {[%emt 0:03:52]} 26. Rdd2 {[%emt 0:02:17]} Rfb7 {[%emt 0:12:22]} 27. Kd1 {[%emt 0:05:47]} Qb5 {[%emt 0:09:30]} 28. Rhf2 {[%emt 0:04:33]} Na5 {[%emt 0:04:22]} 29. Nb4 {[%emt 0:06:11]} Bf8 {[%emt 0:12:14]} 30. Ng4 {[%emt 0:08:05]} Nc4 {[%emt 0:04:32]} 31. Rd5 {[%emt 0:00:39]} Qb6 {[%emt 0:01:49]} 32. Ke2 {[%emt 0:11:33]} a5 {[%emt 0:03:03]} 33. Nd3 {[%emt 0:00:22]} Qc6 {[%emt 0:01:25]} 34. Nf6+ {[%emt 0:00:38]} Kg7 {[%emt 0:00:25]} 35. Kf3 {[%emt 0:01:12]} Qc8 {[%emt 0:00:41]} 36. Ng4 {[%emt 0:01:08]} Rf7+ {[%emt 0:00:29]} 37. Kg3 {[%emt 0:00:10]} Rbb7 {[%emt 0:01:34]} 38. Rxf7+ {[%emt 0:01:28]} Rxf7 {[%emt 0:00:21]} 39. Qc1 {[%emt 0:00:41]} Be7 {[%emt 0:01:13]} 40. Nh6 {[%emt 0:01:10]} Rf8 {[%emt 0:01:43]} 41. Rb5 {[%emt 0:31:14]} Qc6 {[%emt 0:30:42]} 42. Rd5 {[%emt 0:00:33]} Qa4 {[%emt 0:00:23]} 43. Qb1 {[%emt 0:02:03]} Nd2 {[%emt 0:02:12]} 44. Nc5 dxc5 {[%emt 0:04:29]} 45. Rxd2 {[%emt 0:01:06]} Qc4 {[%emt 0:01:50]} 46. Qb7 {[%emt 0:00:36]} Qxc3+ {[%emt 0:00:32]} 0-1

[Event "CZE-ch U12 Open 2023"]
[Site "Teplice"]
[Date "2023.03.11"]
[Round "1.3"]
[White "Hladky, Mikulas"]
[Black "Kroulik, Vaclav"]
[Result "1/2-1/2"]
[Annotator "NA RC COMBH"]
[ECO "A04"]
[WhiteElo "1476"]
[BlackElo "1772"]
[PlyCount "130"]
[EventDate "2023.03.09"]
[EventType "swiss"]
[EventCountry "CZE"]
[SourceTitle "playchess.com"]
[Source "ChessBase"]
[SourceQuality "1"]
[TimeControl "40/5400+30:1800+30"]

1. Nf3 {[%emt 0:00:19]} c5 {[%emt 0:00:08]} 2. c4 {[%emt 0:00:24]} g6 {[%emt 0:00:19]} 3. e3 {[%emt 0:00:25]} Bg7 {[%emt 0:00:06]} 4. Nc3 {[%emt 0:00:25]} Nc6 {[%emt 0:00:11]} 5. b3 {[%emt 0:00:20]} Nf6 {[%emt 0:00:30]} 6. Bb2 {[%emt 0:00:10]} O-O {[%emt 0:00:21]} 7. Be2 {[%emt 0:00:15]} d6 {[%emt 0:00:48]} 8. O-O {[%emt 0:00:55]} a6 {[%emt 0:00:31]} 9. d4 {[%emt 0:00:43]} cxd4 {[%emt 0:00:37]} 10. Nxd4 {[%emt 0:00:23]} Nxd4 {[%emt 0:00:38]} 11. exd4 {[%emt 0:00:22]} Bd7 {[%emt 0:01:38]} 12. Bf3 {[%emt 0:02:32]} Bc6 {[%emt 0:01:58]} 13. Bxc6 {[%emt 0:00:45]} bxc6 {[%emt 0:00:09]} 14. Re1 {[%emt 0:01:06]} Qd7 {[%emt 0:01:07]} 15. Qe2 {[%emt 0:01:15]} Rfe8 {[%emt 0:00:44]} 16. Ne4 {[%emt 0:02:05]} Nxe4 {[%emt 0:01:11]} 17. Qxe4 {[%emt 0:00:34]} d5 {[%emt 0:00:31]} 18. Qd3 {[%emt 0:04:47]} Qb7 {[%emt 0:04:33]} 19. c5 {[%emt 0:04:24]} a5 {[%emt 0:02:42]} 20. Bc3 {[%emt 0:02:41]} Qc7 {[%emt 0:02:21]} 21. Re3 {[%emt 0:03:23]} e6 {[%emt 0:02:23]} 22. g3 {[%emt 0:00:57]} Re7 {[%emt 0:01:31]} 23. Rae1 {[%emt 0:00:47]} Rae8 {[%emt 0:02:08]} 24. f4 {[%emt 0:00:40]} Ra8 {[%emt 0:01:36]} 25. R3e2 {[%emt 0:02:11]} Ree8 {[%emt 0:03:01]} 26. Kg2 {[%emt 0:01:10]} Qb7 {[%emt 0:03:56]} 27. Kg1 {[%emt 0:01:09]} Qa6 {[%emt 0:02:13]} 28. Qxa6 {[%emt 0:00:35]} Rxa6 {[%emt 0:00:07]} 29. Kf2 {[%emt 0:00:34]} Raa8 {[%emt 0:00:59]} 30. Kf3 {[%emt 0:01:04]} Kf8 {[%emt 0:00:53]} 31. Re3 {[%emt 0:02:00]} Ke7 {[%emt 0:00:48]} 32. Ke2 {[%emt 0:00:19]} Kd7 {[%emt 0:00:41]} 33. Kd3 {[%emt 0:00:19]} Bf6 {[%emt 0:02:23]} 34. Kd2 {[%emt 0:01:12]} Bd8 {[%emt 0:01:01]} 35. Kd3 {[%emt 0:00:17]} Bc7 {[%emt 0:00:30]} 36. Kd2 {[%emt 0:00:52]} Rg8 {[%emt 0:02:12]} 37. Kd3 {[%emt 0:02:31]} Rae8 {[%emt 0:00:25]} 38. Rf3 {[%emt 0:00:40]} h6 {[%emt 0:01:39]} 39. Kd2 {[%emt 0:01:51]} f5 {[%emt 0:01:46]} 40. Kd3 {[%emt 0:01:35]} g5 {[%emt 0:00:43]} 41. Bd2 {[%emt 0:31:34]} g4 {[%emt 0:37:57]} 42. Rf2 {[%emt 0:00:44]} Rg6 {[%emt 0:01:19]} 43. Rh1 {[%emt 0:00:45]} Reg8 {[%emt 0:00:36]} 44. Rff1 {[%emt 0:00:39]} h5 {[%emt 0:01:24]} 45. Rf2 {[%emt 0:00:23]} h4 {[%emt 0:02:26]} 46. Rff1 {[%emt 0:00:28]} Rh8 {[%emt 0:01:32]} 47. Rhg1 {[%emt 0:04:44]} hxg3 {[%emt 0:01:29]} 48. hxg3 {[%emt 0:00:15]} Rh2 {[%emt 0:01:07]} 49. Re1 {[%emt 0:01:34]} Rgh6 {[%emt 0:00:46]} 50. Re2 {[%emt 0:00:44]} Rxe2 {[%emt 0:10:05]} 51. Kxe2 {[%emt 0:00:08]} Rh2+ {[%emt 0:00:17]} 52. Kd3 {[%emt 0:00:35]} Rh3 {[%emt 0:01:17]} 53. Kc2 {[%emt 0:00:32]} Rh6 {[%emt 0:02:12]} 54. a4 {[%emt 0:00:16]} Kc8 {[%emt 0:00:50]} 55. Kd3 {[%emt 0:01:53]} Kb7 {[%emt 0:00:42]} 56. Kc2 {[%emt 0:00:39]} Ka6 {[%emt 0:00:33]} 57. Re1 {[%emt 0:04:43]} Kb7 {[%emt 0:01:16]} 58. Re2 {[%emt 0:00:42]} Kc8 {[%emt 0:00:15]} 59. Be1 {[%emt 0:00:36]} Kd7 {[%emt 0:00:34]} 60. Kd3 {[%emt 0:00:35]} Rh3 {[%emt 0:00:58]} 61. Re3 {[%emt 0:00:09]} Rh1 {[%emt 0:01:21]} 62. Re2 {[%emt 0:00:32]} Rh3 {[%emt 0:00:41]} 63. Re3 {[%emt 0:00:10]} Ke7 {[%emt 0:01:15]} 64. Kd2 {[%emt 0:00:12]} Kf6 {[%emt 0:02:02]} 65. Kd3 {[%emt 0:00:27]} Ke7 1/2-1/2

[Event "CZE-ch U12 Open 2023"]
[Site "Teplice"]
[Date "2023.03.11"]
[Round "1.4"]
[White "Bara, Jan"]
[Black "Maly, Jiri"]
[Result "1-0"]
[Annotator "NA RC COMBH"]
[ECO "C47"]
[WhiteElo "1712"]
[BlackElo "1520"]
[PlyCount "77"]
[EventDate "2023.03.09"]
[EventType "swiss"]
[EventCountry "CZE"]
[SourceTitle "playchess.com"]
[Source "ChessBase"]
[SourceQuality "1"]
[TimeControl "40/5400+30:1800+30"]

1. e4 {[%emt 0:00:02]} e5 {[%emt 0:00:17]} 2. Nf3 {[%emt 0:00:06]} Nc6 {[%emt 0:00:14]} 3. Nc3 {[%emt 0:00:04]} Nf6 {[%emt 0:00:13]} 4. d4 {[%emt 0:00:04]} exd4 {[%emt 0:00:24]} 5. Nxd4 {[%emt 0:00:01]} Nxe4 {[%emt 0:00:57]} 6. Nxe4 {[%emt 0:00:23]} Qe7 {[%emt 0:00:21]} 7. f3 {[%emt 0:01:09]} d5 {[%emt 0:00:45]} 8. Bb5 {[%emt 0:00:53]} Bd7 {[%emt 0:00:51]} 9. Bxc6 {[%emt 0:00:11]} bxc6 {[%emt 0:00:22]} 10. O-O {[%emt 0:00:16]} dxe4 {[%emt 0:00:50]} 11. Re1 {[%emt 0:01:04]} O-O-O {[%emt 0:02:03]} 12. Rxe4 {[%emt 0:04:19]} Qb4 {[%emt 0:01:41]} 13. Nb3 {[%emt 0:05:25]} Bf5 {[%emt 0:03:21]} 14. Qxd8+ Kxd8 {[%emt 0:00:16]} 15. Rxb4 {[%emt 0:01:17]} Bxb4 {[%emt 0:00:16]} 16. c3 {[%emt 0:00:18]} Bd6 {[%emt 0:01:47]} 17. Be3 {[%emt 0:01:51]} a6 {[%emt 0:06:38]} 18. Na5 {[%emt 0:22:24]} Kd7 {[%emt 0:13:59]} 19. Rd1 {[%emt 0:08:03]} Be6 {[%emt 0:09:13]} 20. c4 {[%emt 0:01:14]} Kc8 {[%emt 0:03:08]} 21. c5 {[%emt 0:05:06]} Be5 {[%emt 0:01:33]} 22. Nxc6 {[%emt 0:00:16]} Bf6 {[%emt 0:04:10]} 23. b3 {[%emt 0:03:46]} Kb7 {[%emt 0:11:00]} 24. Nb4 {[%emt 0:12:15]} a5 {[%emt 0:05:06]} 25. c6+ {[%emt 0:06:00]} Kc8 {[%emt 0:01:11]} 26. Na6 {[%emt 0:02:53]} Rd8 {[%emt 0:06:18]} 27. Rxd8+ {[%emt 0:01:42]} Kxd8 {[%emt 0:04:11]} 28. Nc5 {[%emt 0:02:42]} Bc3 {[%emt 0:05:33]} 29. Bg5+ {[%emt 0:06:36]} Kc8 {[%emt 0:02:12]} 30. Nxe6 {[%emt 0:01:39]} fxe6 {[%emt 0:00:49]} 31. Kf2 {[%emt 0:00:30]} Bd4+ {[%emt 0:10:58]} 32. Ke2 {[%emt 0:02:31]} Kb8 {[%emt 0:01:54]} 33. Kd3 {[%emt 0:01:08]} Bg1 {[%emt 0:02:33]} 34. Bf4 {[%emt 0:00:50]} Bb6 {[%emt 0:00:38]} 35. Ke4 {[%emt 0:01:06]} Kc8 {[%emt 0:00:38]} 36. Ke5 {[%emt 0:00:47]} Kd8 {[%emt 0:00:27]} 37. Kxe6 {[%emt 0:00:12]} Ke8 {[%emt 0:00:20]} 38. Be5 {[%emt 0:00:17]} g6 {[%emt 0:00:36]} 39. g4 {[%emt 0:01:03]} 1-0

[Event "CZE-ch U12 Open 2023"]
[Site "Teplice"]
[Date "2023.03.11"]
[Round "1.5"]
[White "Frantsev, Iegor"]
[Black "Chernyy, Andrey"]
[Result "0-1"]
[Annotator "NA RC COMBH"]
[ECO "C45"]
[WhiteElo "1424"]
[BlackElo "1605"]
[PlyCount "92"]
[EventDate "2023.03.09"]
[EventType "swiss"]
[EventCountry "CZE"]
[SourceTitle "playchess.com"]
[Source "ChessBase"]
[SourceQuality "1"]
[TimeControl "40/5400+30:1800+30"]

1. e4 {[%emt 0:00:01]} e5 {[%emt 0:00:08]} 2. Nf3 {[%emt 0:00:10]} Nc6 {[%emt 0:00:09]} 3. d4 {[%emt 0:00:12]} exd4 {[%emt 0:00:07]} 4. Nxd4 {[%emt 0:00:07]} Nf6 {[%emt 0:00:19]} 5. Nxc6 {[%emt 0:00:59]} bxc6 {[%emt 0:00:08]} 6. e5 {[%emt 0:00:44]} Qe7 {[%emt 0:00:10]} 7. Qe2 {[%emt 0:00:29]} Nd5 {[%emt 0:00:07]} 8. c4 {[%emt 0:01:46]} Ba6 {[%emt 0:00:23]} 9. b3 {[%emt 0:13:56]} g6 {[%emt 0:01:50]} 10. Ba3 {[%emt 0:12:42]} d6 {[%emt 0:13:53]} 11. Bb2 {[%emt 0:31:11]} Bg7 {[%emt 0:03:23]} 12. g3 {[%emt 0:02:22]} O-O {[%emt 0:09:11]} 13. Bg2 {[%emt 0:08:12]} Rae8 {[%emt 0:07:25]} 14. O-O {[%emt 0:02:14]} Bxe5 {[%emt 0:07:54]} 15. Bxe5 {[%emt 0:01:23]} Qxe5 {[%emt 0:00:10]} 16. Qxe5 {[%emt 0:00:56]} Rxe5 {[%emt 0:00:15]} 17. cxd5 {[%emt 0:01:28]} Bxf1 {[%emt 0:00:09]} 18. Kxf1 {[%emt 0:00:08]} cxd5 {[%emt 0:00:08]} 19. Nc3 {[%emt 0:01:21]} c6 {[%emt 0:11:44]} 20. Bf3 {[%emt 0:01:27]} f5 {[%emt 0:10:00]} 21. Rd1 {[%emt 0:00:44]} f4 {[%emt 0:05:38]} 22. Bg4 {[%emt 0:08:24]} fxg3 {[%emt 0:01:13]} 23. hxg3 {[%emt 0:00:32]} Rf7 {[%emt 0:10:22]} 24. Kg2 {[%emt 0:02:56]} Kg7 {[%emt 0:00:58]} 25. Kf1 {[%emt 0:01:32]} Re3 {[%emt 0:05:04]} 26. Ne2 {[%emt 0:01:14]} h5 {[%emt 0:04:07]} 27. Bh3 {[%emt 0:01:44]} g5 {[%emt 0:01:58]} 28. Ng1 {[%emt 0:00:33]} g4 {[%emt 0:01:51]} 29. Bg2 {[%emt 0:00:13]} Rxg3 {[%emt 0:01:05]} 30. Ne2 {[%emt 0:00:04]} Re3 {[%emt 0:00:12]} 31. Nd4 {[%emt 0:00:34]} Rc3 {[%emt 0:03:21]} 32. Kg1 {[%emt 0:04:18]} Kf6 {[%emt 0:02:06]} 33. Re1 {[%emt 0:01:06]} Re7 {[%emt 0:00:18]} 34. Rd1 {[%emt 0:00:24]} Re5 {[%emt 0:00:20]} 35. Kf1 {[%emt 0:00:23]} h4 {[%emt 0:00:08]} 36. Kg1 {[%emt 0:00:21]} h3 {[%emt 0:01:12]} 37. Bh1 {[%emt 0:00:01]} Ke7 {[%emt 0:00:38]} 38. Kh2 {[%emt 0:00:58]} a6 {[%emt 0:00:28]} 39. b4 {[%emt 0:00:42]} Kd7 {[%emt 0:00:37]} 40. Nb3 {[%emt 0:01:05]} Re2 {[%emt 0:00:23]} 41. Kg1 {[%emt 0:30:16]} g3 {[%emt 0:30:36]} 42. Nd4 {[%emt 0:00:48]} Rxf2 {[%emt 0:00:22]} 43. Nf3 {[%emt 0:00:38]} h2+ {[%emt 0:00:20]} 44. Nxh2 {[%emt 0:00:07]} Rxh2 {[%emt 0:00:07]} 45. Rf1 {[%emt 0:00:22]} Ra3 {[%emt 0:00:23]} 46. Rf7+ {[%emt 0:00:06]} Ke6 {[%emt 0:00:19]} 0-1

[Event "CZE-ch U12 Open 2023"]
[Site "Teplice"]
[Date "2023.03.11"]
[Round "1.6"]
[White "Mydlar, Matej"]
[Black "Rudlof, Adam"]
[Result "1-0"]
[Annotator "NA RC COMBH"]
[ECO "B72"]
[WhiteElo "1586"]
[BlackElo "1409"]
[PlyCount "113"]
[EventDate "2023.03.09"]
[EventType "swiss"]
[EventCountry "CZE"]
[SourceTitle "playchess.com"]
[Source "ChessBase"]
[SourceQuality "1"]
[TimeControl "40/5400+30:1800+30"]

1. e4 {[%emt 0:00:04]} c5 {[%emt 0:00:06]} 2. Nf3 {[%emt 0:00:04]} d6 {[%emt 0:00:07]} 3. d4 {[%emt 0:00:04]} cxd4 {[%emt 0:00:05]} 4. Nxd4 {[%emt 0:00:07]} Nf6 {[%emt 0:00:06]} 5. Nc3 {[%emt 0:00:07]} g6 {[%emt 0:00:07]} 6. Be2 {[%emt 0:00:13]} Bg7 {[%emt 0:00:09]} 7. Be3 {[%emt 0:00:04]} Nc6 {[%emt 0:00:07]} 8. Qd2 {[%emt 0:01:37]} O-O {[%emt 0:00:17]} 9. f3 {[%emt 0:00:50]} d5 {[%emt 0:01:38]} 10. O-O-O {[%emt 0:19:18]} Nxd4 {[%emt 0:22:49]} 11. Bxd4 {[%emt 0:03:11]} dxe4 {[%emt 0:00:38]} 12. fxe4 {[%emt 0:12:11]} Qa5 {[%emt 0:00:37]} 13. Kb1 {[%emt 0:09:00]} Rd8 {[%emt 0:04:02]} 14. Qe3 {[%emt 0:15:00]} Be6 {[%emt 0:09:44]} 15. a3 {[%emt 0:02:37]} Rac8 {[%emt 0:12:43]} 16. Rhf1 {[%emt 0:10:52]} Bg4 {[%emt 0:26:28]} 17. e5 {[%emt 0:07:23]} Bxe2 {[%emt 0:00:37]} 18. Qxe2 {[%emt 0:00:13]} Nd5 {[%emt 0:00:31]} 19. Ne4 {[%emt 0:01:15]} h6 {[%emt 0:04:16]} 20. Qf3 {[%emt 0:01:09]} Rf8 {[%emt 0:00:32]} 21. g4 {[%emt 0:00:46]} Qc7 {[%emt 0:01:45]} 22. Qe2 {[%emt 0:00:49]} Bxe5 {[%emt 0:01:40]} 23. g5 {[%emt 0:01:57]} h5 {[%emt 0:00:44]} 24. Bxe5 {[%emt 0:01:56]} Qxe5 {[%emt 0:00:07]} 25. Nf6+ {[%emt 0:00:17]} exf6 {[%emt 0:00:05]} 26. Qxe5 {[%emt 0:00:06]} fxe5 {[%emt 0:00:08]} 27. Rxd5 {[%emt 0:00:04]} Rfd8 {[%emt 0:01:20]} 28. Rxe5 {[%emt 0:00:07]} Rd2 {[%emt 0:00:06]} 29. c3 {[%emt 0:00:28]} Rxh2 {[%emt 0:00:05]} 30. Re7 {[%emt 0:00:03]} Rg2 {[%emt 0:01:48]} 31. Rfxf7 {[%emt 0:00:26]} Rxg5 {[%emt 0:00:56]} 32. Rxb7 {[%emt 0:00:09]} a5 {[%emt 0:00:26]} 33. Rg7+ {[%emt 0:01:01]} Kf8 {[%emt 0:00:18]} 34. Rbf7+ {[%emt 0:00:17]} Ke8 {[%emt 0:00:06]} 35. Rf6 {[%emt 0:00:28]} Rg1+ {[%emt 0:01:41]} 36. Ka2 {[%emt 0:00:06]} Rc5 {[%emt 0:05:18]} 37. Rfxg6 {[%emt 0:01:09]} Rxg6 {[%emt 0:00:06]} 38. Rxg6 {[%emt 0:00:01]} Kd7 {[%emt 0:00:08]} 39. Kb3 {[%emt 0:00:15]} Rb5+ {[%emt 0:00:29]} 40. Kc2 {[%emt 0:00:07]} Kc7 {[%emt 0:01:23]} 41. c4 {[%emt 0:30:15]} Rf5 {[%emt 0:31:48]} 42. Rh6 {[%emt 0:00:16]} Rg5 {[%emt 0:02:47]} 43. b4 {[%emt 0:01:03]} Rg2+ {[%emt 0:00:14]} 44. Kb3 {[%emt 0:00:06]} axb4 {[%emt 0:00:49]} 45. axb4 {[%emt 0:00:03]} Rg5 {[%emt 0:00:09]} 46. Ka4 {[%emt 0:00:09]} Kb7 {[%emt 0:00:08]} 47. c5 {[%emt 0:00:05]} Kc7 {[%emt 0:01:09]} 48. Kb5 {[%emt 0:00:07]} Kb7 {[%emt 0:01:57]} 49. Rh7+ {[%emt 0:00:05]} Kc8 {[%emt 0:00:28]} 50. Kb6 {[%emt 0:00:01]} Rg4 {[%emt 0:00:49]} 51. b5 {[%emt 0:00:41]} Kd8 {[%emt 0:00:46]} 52. Rxh5 {[%emt 0:00:09]} Rg6+ {[%emt 0:00:06]} 53. c6 {[%emt 0:00:06]} Rg8 {[%emt 0:00:12]} 54. Kb7 {[%emt 0:00:07]} Rg7+ {[%emt 0:00:05]} 55. Kb8 {[%emt 0:00:23]} Rg8 {[%emt 0:00:24]} 56. c7+ {[%emt 0:00:11]} Kd7+ {[%emt 0:00:30]} 57. Kb7 {[%emt 0:00:07]} 1-0

[Event "CZE-ch U12 Open 2023"]
[Site "Teplice"]
[Date "2023.03.11"]
[Round "1.7"]
[White "Tejnor, Martin"]
[Black "Migalko, Dmitriy"]
[Result "1-0"]
[Annotator "NA RC COMBH"]
[ECO "B40"]
[WhiteElo "1360"]
[BlackElo "1581"]
[PlyCount "83"]
[EventDate "2023.03.09"]
[EventType "swiss"]
[EventCountry "CZE"]
[SourceTitle "playchess.com"]
[Source "ChessBase"]
[SourceQuality "1"]
[TimeControl "40/5400+30:1800+30"]

1. e4 {[%emt 0:00:03]} c5 {[%emt 0:00:03]} 2. Nf3 {[%emt 0:00:31]} e6 {[%emt 0:00:07]} 3. Nc3 {[%emt 0:00:11]} a6 {[%emt 0:00:29]} 4. Be2 {[%emt 0:01:03]} d5 {[%emt 0:00:36]} 5. exd5 {[%emt 0:00:11]} exd5 {[%emt 0:00:08]} 6. d4 {[%emt 0:00:05]} Nf6 {[%emt 0:00:33]} 7. Bg5 {[%emt 0:02:48]} Be6 {[%emt 0:02:50]} 8. O-O {[%emt 0:02:15]} Be7 {[%emt 0:00:28]} 9. dxc5 {[%emt 0:04:18]} O-O {[%emt 0:01:59]} 10. Nd4 {[%emt 0:04:55]} Bxc5 {[%emt 0:00:58]} 11. Bf3 {[%emt 0:02:12]} Nc6 {[%emt 0:02:30]} 12. Be3 {[%emt 0:01:41]} Bd6 {[%emt 0:03:20]} 13. a3 {[%emt 0:04:05]} Qc7 {[%emt 0:03:21]} 14. g3 {[%emt 0:01:48]} Ne5 {[%emt 0:00:55]} 15. Bg2 {[%emt 0:01:31]} Neg4 {[%emt 0:07:59]} 16. Bd2 {[%emt 0:04:49]} Bc5 {[%emt 0:03:18]} 17. Bf4 {[%emt 0:01:02]} Bd6 {[%emt 0:02:43]} 18. Bxd6 {[%emt 0:00:21]} Qxd6 {[%emt 0:00:06]} 19. Re1 {[%emt 0:01:21]} Rae8 {[%emt 0:02:12]} 20. Qd2 {[%emt 0:01:14]} Ne5 {[%emt 0:00:52]} 21. Rad1 {[%emt 0:01:54]} Nc4 {[%emt 0:01:28]} 22. Qc1 {[%emt 0:03:37]} Bd7 {[%emt 0:12:40]} 23. Rxe8 {[%emt 0:08:54]} Rxe8 {[%emt 0:00:14]} 24. Nb3 {[%emt 0:03:07]} Bc6 {[%emt 0:00:59]} 25. Bf1 {[%emt 0:01:08]} Ne5 {[%emt 0:01:14]} 26. Nd4 {[%emt 0:01:06]} Qc5 {[%emt 0:12:39]} 27. Nb3 {[%emt 0:04:31]} Qb6 {[%emt 0:03:01]} 28. Bg2 {[%emt 0:01:33]} Neg4 {[%emt 0:01:02]} 29. Qf4 {[%emt 0:07:57]} h6 {[%emt 0:10:03]} 30. h3 {[%emt 0:03:27]} g5 {[%emt 0:04:11]} 31. Qd2 {[%emt 0:00:56]} Ne5 {[%emt 0:00:10]} 32. Qd4 {[%emt 0:15:05]} Qc7 {[%emt 0:06:22]} 33. Nc5 {[%emt 0:04:32]} Rd8 {[%emt 0:04:39]} 34. f4 {[%emt 0:00:34]} Ned7 {[%emt 0:02:36]} 35. Nxd7 {[%emt 0:00:14]} Nxd7 {[%emt 0:00:08]} 36. Bxd5 {[%emt 0:00:31]} gxf4 {[%emt 0:04:23]} 37. Bxc6 {[%emt 0:01:24]} Qxc6 {[%emt 0:00:52]} 38. Qxf4 {[%emt 0:00:10]} Qb6+ {[%emt 0:00:36]} 39. Qd4 {[%emt 0:00:38]} Qxb2 {[%emt 0:00:45]} 40. Nd5 {[%emt 0:00:41]} Qxd4+ {[%emt 0:00:46]} 41. Rxd4 {[%emt 0:30:29]} Kf8 {[%emt 0:30:32]} 42. Ne3 {[%emt 0:03:01]} 1-0